[Event "22nd Hoogeveen Open 2018"]
[Site "Hoogeveen"]
[Date "2018.10.25"]
[Round "7"]
[White "Boghossian, Wahe"]
[Black "Kutchoukov, Daniel"]
[Result "1-0"]
[ECO "B72"]
[WhiteElo "1748"]
[BlackElo "1882"]
[Annotator "NA"]
[PlyCount "77"]
[EventDate "2018.10.20"]
[EventType "swiss"]
[EventCountry "NED"]
[SourceTitle "playchess.com"]
[Source "ChessBase"]
[SourceQuality "1"]
[TimeControl "40/5400+30:1800+30"]

1. e4 {[%emt 0:00:00]} c5 {[%emt 0:00:00]} 2. Nf3 {[%emt 0:00:00]} d6 {[%emt 0:00:00]} 3. d4 {[%emt 0:00:00]} cxd4 {[%emt 0:00:00]} 4. Nxd4 {[%emt 0:00:00]} Nf6 {[%emt 0:00:00]} 5. Nc3 {[%emt 0:00:00]} a6 {[%emt 0:00:11]} 6. h3 {[%emt 0:00:02]} Nc6 {[%emt 0:00:59]} 7. Be3 {[%emt 0:00:56]} g6 {[%emt 0:06:03]} 8. Qd2 {[%emt 0:01:07]} Bg7 {[%emt 0:00:14]} 9. O-O-O {[%emt 0:02:21]} O-O {[%emt 0:00:36]} 10. f3 {[%emt 0:00:41]} Qc7 {[%emt 0:16:56]} 11. h4 {[%emt 0:00:48]} b5 {[%emt 0:10:22]} 12. h5 {[%emt 0:01:24]} Nxd4 {[%emt 0:20:37]} 13. Bxd4 {[%emt 0:00:30]} e5 {[%emt 0:05:23]} 14. Be3 {[%emt 0:00:38]} Nxh5 {[%emt 0:01:52]} 15. Nd5 {[%emt 0:01:19]} Qd8 {[%emt 0:01:26]} 16. Bh6 {[%emt 0:05:54]} Nf4 {[%emt 0:09:36]} 17. Bxg7 {[%emt 0:02:01]} Kxg7 {[%emt 0:01:22]} 18. g3 {[%emt 0:01:34]} Nh5 {[%emt 0:00:55]} 19. g4 {[%emt 0:13:57]} Nf4 {[%emt 0:01:34]} 20. Nxf4 {[%emt 0:02:07]} exf4 {[%emt 0:00:06]} 21. Qxf4 {[%emt 0:00:18]} Rh8 {[%emt 0:01:11]} 22. Rxd6 {[%emt 0:06:35]} Qe7 {[%emt 0:01:22]} 23. e5 {[%emt 0:06:40]} Be6 {[%emt 0:01:35]} 24. Qh6+ {[%emt 0:03:35]} Kg8 {[%emt 0:00:07]} 25. Be2 {[%emt 0:02:02]} Rc8 {[%emt 0:05:03]} 26. Rhd1 {[%emt 0:03:45]} Bxa2 {[%emt 0:03:25]} 27. R1d2 {[%emt 0:01:37]} b4 {[%emt 0:02:51]} 28. Rd7 {[%emt 0:03:16]} Qf8 {[%emt 0:01:14]} 29. Qg5 {[%emt 0:00:28]} f6 {[%emt 0:00:29]} 30. exf6 {[%emt 0:00:55]} Bf7 {[%emt 0:00:08]} 31. Qa5 {[%emt 0:08:18]} Re8 {[%emt 0:01:21]} 32. Rd8 {[%emt 0:00:41]} h5 {[%emt 0:00:22]} 33. Rxe8 {[%emt 0:04:03]} Bxe8 {[%emt 0:00:02]} 34. Bc4+ {[%emt 0:00:53]} Kh7 {[%emt 0:00:26]} 35. g5 {[%emt 0:00:29]} Rg8 {[%emt 0:02:15]} 36. Qc7+ {[%emt 0:01:00]} Kh8 {[%emt 0:00:16]} 37. Rd8 {[%emt 0:05:12]} b3 {[%emt 0:01:38]} 38. Bxg8 {[%emt 0:00:32]} Kxg8 {[%emt 0:00:22]} 39. Rxe8 {[%emt 0:00:17]} 1-0

[Event "22nd Hoogeveen Open 2018"]
[Site "Hoogeveen"]
[Date "2018.10.26"]
[Round "8"]
[White "Van Delft, Merijn"]
[Black "Giacomini, Hector"]
[Result "0-1"]
[ECO "C10"]
[WhiteElo "2381"]
[BlackElo "2178"]
[Annotator "NA"]
[PlyCount "54"]
[EventDate "2018.10.20"]
[EventType "swiss"]
[EventCountry "NED"]
[SourceTitle "playchess.com"]
[Source "ChessBase"]
[SourceQuality "1"]
[TimeControl "40/5400+30:1800+30"]

1. e4 {[%emt 0:00:20]} e6 {[%emt 0:00:00]} 2. d4 {[%emt 0:00:30]} d5 {[%emt 0:00:00]} 3. Nc3 {[%emt 0:00:41]} dxe4 {[%emt 0:00:00]} 4. Nxe4 {[%emt 0:00:07]} Nd7 {[%emt 0:00:00]} 5. Nf3 {[%emt 0:00:37]} Ngf6 {[%emt 0:00:00]} 6. Nxf6+ {[%emt 0:02:05]} Nxf6 {[%emt 0:00:02]} 7. Bd3 {[%emt 0:02:04]} c5 {[%emt 0:00:13]} 8. Be3 {[%emt 0:01:37]} Qc7 {[%emt 0:00:16]} 9. Qe2 {[%emt 0:03:55]} Be7 {[%emt 0:00:15]} 10. O-O-O {[%emt 0:03:14] LiveBook: 15 Games} Bd7 {[%emt 0:00:44]} 11. Ne5 {[%emt 0:02:10]} O-O {[%emt 0:00:57]} 12. Kb1 $11 {[%emt 0:07:59]} Rfd8 {[%emt 0:02:04]} 13. Nxd7 {[%emt 0:04:16]} Rxd7 {[%emt 0:01:35]} 14. dxc5 {[%emt 0:01:47]} Bxc5 {[%emt 0:07:19]} 15. Bg5 {[%emt 0:06:55]} Be7 {[%emt 0:05:01]} 16. g3 {[%emt 0:16:49]} Rad8 {[%emt 0:00:51]} 17. h4 {[%emt 0:06:27]} Qb6 {[%emt 0:03:35]} 18. Ka1 {[%emt 0:02:16]} Nd5 {[%emt 0:14:25]} 19. c3 {[%emt 0:05:22]} Bf6 {[%emt 0:07:59]} 20. Qc2 {[%emt 0:04:01]} h6 {[%emt 0:01:39]} 21. Bc1 {[%emt 0:03:46]} Qa5 {[%emt 0:10:02]} 22. a3 {[%emt 0:08:53]} Nxc3 {[%emt 0:11:06]} 23. Bh7+ {[%emt 0:06:33]} Kh8 {[%emt 0:00:09]} 24. Rxd7 {[%emt 0:00:21]} Rxd7 {[%emt 0:00:19]} 25. bxc3 {[%emt 0:06:38]} Bxc3+ {[%emt 0:03:34]} 26. Kb1 {[%emt 0:00:35]} Qb5+ {[%emt 0:00:35]} 27. Ka2 {[%emt 0:00:26]} Qd5+ {[%emt 0:01:24]} 0-1

[Event "22nd Hoogeveen Open 2018"]
[Site "Hoogeveen"]
[Date "2018.10.26"]
[Round "8"]
[White "Colijn, Stefan"]
[Black "De Jong, Migchiel"]
[Result "1/2-1/2"]
[ECO "A34"]
[WhiteElo "2340"]
[BlackElo "2309"]
[Annotator "NA"]
[PlyCount "25"]
[EventDate "2018.10.20"]
[EventType "swiss"]
[EventCountry "NED"]
[SourceTitle "playchess.com"]
[Source "ChessBase"]
[SourceQuality "1"]
[TimeControl "40/5400+30:1800+30"]

{[%evp 9,19,0,14,2,42,40,43,32767,32767,32767,32767,-15]} 1. Nf3 {[%emt 0:00:00]} c5 {[%emt 0:01:05]} 2. c4 {[%emt 0:00:00]} Nf6 {[%emt 0:00:19]} 3. Nc3 {[%emt 0:00:08]} d5 {[%emt 0:00:38]} 4. cxd5 {[%emt 0:00:40]} Nxd5 {[%emt 0:00:08]} 5. Qa4+ {[%emt 0:07:43]} Nc6 {[%emt 0:04:21]} 6. Ne5 {[%emt 0:02:08] LiveBook: 33 Games} Ndb4 {[%emt 0:00:59]} 7. a3 {[%emt 0:05:46]} Nc2+ {[%emt 0:02:40]} 8. Qxc2 {[%emt 0:02:20]} Nxe5 {[%emt 0:00:05]} 9. g3 {[%emt 0:10:50]} Bd7 {[%emt 0:05:03]} 10. Bg2 $11 {[%emt 0:02:50]} Bc6 {[%emt 0:00:19]} 11. O-O {[%emt 0:00:44]} e6 {[%emt 0:00:35]} 12. d3 {[%emt 0:04:21]} Be7 {[%emt 0:00:45]} 13. Bd2 {[%emt 0:01:55]} 1/2-1/2

[Event "22nd Hoogeveen Open 2018"]
[Site "Hoogeveen"]
[Date "2018.10.26"]
[Round "8"]
[White "Tomilova, Elena"]
[Black "Konings, Frans"]
[Result "0-1"]
[ECO "B06"]
[WhiteElo "2328"]
[BlackElo "2195"]
[Annotator "NA"]
[PlyCount "82"]
[EventDate "2018.10.20"]
[EventType "swiss"]
[EventCountry "NED"]
[SourceTitle "playchess.com"]
[Source "ChessBase"]
[SourceQuality "1"]
[TimeControl "40/5400+30:1800+30"]

1. Nf3 {[%emt 0:00:00]} g6 {[%emt 0:01:25]} 2. d4 {[%emt 0:00:00]} Bg7 {[%emt 0:00:09]} 3. e4 {[%emt 0:00:09]} d6 {[%emt 0:00:15]} 4. Bc4 {[%emt 0:00:15]} e6 {[%emt 0:05:03]} 5. Bb3 {[%emt 0:02:56]} Ne7 {[%emt 0:00:06]} 6. Qe2 {[%emt 0:01:41] LiveBook: 4 Games} a5 {[%emt 0:00:42]} 7. a4 {[%emt 0:06:08]} b6 {[%emt 0:03:35]} 8. Nbd2 {[%emt 0:00:30] [#]} (8. O-O $11) 8... Ba6 {[%emt 0:00:21]} (8... d5 $1 $17) 9. Bc4 {[%emt 0:05:14]} O-O {[%emt 0:03:22]} 10. O-O {[%emt 0:01:07]} Bxc4 {[%emt 0:01:43]} 11. Nxc4 {[%emt 0:00:29]} Nbc6 {[%emt 0:00:49]} 12. c3 {[%emt 0:00:37]} Qc8 {[%emt 0:03:44]} 13. Re1 {[%emt 0:06:16]} Qa6 $14 {[%emt 0:00:50]} 14. Na3 {[%emt 0:01:31]} Qxe2 {[%emt 0:00:21]} 15. Rxe2 {[%emt 0:00:01]} Na7 {[%emt 0:07:17]} 16. Be3 {[%emt 0:07:00]} h6 {[%emt 0:00:50]} 17. h4 {[%emt 0:00:21]} Rae8 {[%emt 0:03:41]} 18. Rae1 {[%emt 0:03:35]} Kh7 {[%emt 0:00:06]} 19. Bc1 {[%emt 0:00:42]} Rb8 {[%emt 0:04:44]} 20. c4 {[%emt 0:11:35]} Nec6 {[%emt 0:14:29]} 21. Rd1 {[%emt 0:00:41]} e5 {[%emt 0:04:20]} 22. d5 {[%emt 0:09:06]} Nd8 {[%emt 0:04:02]} 23. Nd2 {[%emt 0:03:56]} f5 {[%emt 0:01:59]} 24. exf5 {[%emt 0:03:26]} gxf5 {[%emt 0:00:07]} 25. f4 {[%emt 0:00:46]} Nb7 {[%emt 0:05:28]} 26. Nb3 {[%emt 0:01:28]} Rf7 {[%emt 0:00:49]} 27. Be3 {[%emt 0:06:26]} Nc5 {[%emt 0:02:38]} 28. Bxc5 {[%emt 0:03:30]} bxc5 {[%emt 0:00:29]} 29. Nb5 {[%emt 0:01:17]} Nxb5 {[%emt 0:00:26]} 30. cxb5 {[%emt 0:00:28]} exf4 {[%emt 0:00:18]} 31. Rde1 {[%emt 0:11:36]} Bf6 {[%emt 0:04:52]} 32. h5 {[%emt 0:00:43]} Rg8 {[%emt 0:00:41]} 33. Re8 {[%emt 0:01:24]} Rg3 {[%emt 0:02:01]} 34. Nc1 {[%emt 0:03:57]} Rfg7 {[%emt 0:00:10]} 35. Kf1 {[%emt 0:03:55]} Rxg2 {[%emt 0:00:48]} 36. Nd3 {[%emt 0:00:27]} Bh4 {[%emt 0:00:42]} 37. R1e6 {[%emt 0:01:41]} f3 {[%emt 0:00:54]} 38. Rg6 {[%emt 0:00:39]} Rd2 {[%emt 0:01:57]} 39. Rxg7+ {[%emt 0:02:06]} Kxg7 {[%emt 0:00:04]} 40. Re3 {[%emt 0:00:11]} Rd1+ {[%emt 0:00:14]} 41. Ne1 {[%emt 0:30:04]} f2 {[%emt 0:30:11]} 0-1

[Event "22nd Hoogeveen Open 2018"]
[Site "Hoogeveen"]
[Date "2018.10.26"]
[Round "8"]
[White "Den Hartog, Marijn"]
[Black "Thrish Karthik"]
[Result "1/2-1/2"]
[ECO "D10"]
[WhiteElo "2296"]
[BlackElo "2116"]
[Annotator "NA"]
[PlyCount "114"]
[EventDate "2018.10.20"]
[EventType "swiss"]
[EventCountry "NED"]
[SourceTitle "playchess.com"]
[Source "ChessBase"]
[SourceQuality "1"]
[TimeControl "40/5400+30:1800+30"]

1. d4 {[%emt 0:00:00]} d5 {[%emt 0:00:00]} 2. Nf3 {[%emt 0:00:00]} Nf6 {[%emt 0:00:54]} 3. c4 {[%emt 0:00:00]} c6 {[%emt 0:01:05]} 4. Qc2 {[%emt 0:00:54]} g6 {[%emt 0:01:24]} 5. e3 {[%emt 0:00:45]} Bg7 {[%emt 0:02:13]} 6. Nc3 {[%emt 0:02:08]} O-O {[%emt 0:01:31]} 7. Be2 {[%emt 0:02:08]} a6 {[%emt 0:08:09]} 8. O-O {[%emt 0:03:56]} b5 {[%emt 0:12:25] LiveBook: 4 Games} 9. cxd5 {[%emt 0:00:33]} cxd5 {[%emt 0:02:42]} 10. b4 {[%emt 0:00:09]} Bf5 {[%emt 0:07:41]} 11. Qb3 {[%emt 0:00:18]} Nc6 {[%emt 0:15:08]} 12. Bd2 {[%emt 0:07:45]} Qd6 {[%emt 0:04:36]} 13. Rfc1 $11 {[%emt 0:04:54]} Rab8 {[%emt 0:11:25]} 14. a3 {[%emt 0:07:48]} e5 {[%emt 0:05:54]} 15. dxe5 {[%emt 0:00:41]} Nxe5 {[%emt 0:00:04]} 16. Nxe5 {[%emt 0:04:27]} Qxe5 {[%emt 0:00:05]} 17. Bf3 {[%emt 0:05:38]} Bd3 {[%emt 0:07:58]} 18. Ne2 {[%emt 0:01:29]} Bxe2 {[%emt 0:02:48]} 19. Bc3 {[%emt 0:00:44]} Qf5 {[%emt 0:01:06]} 20. Bxe2 {[%emt 0:01:13]} Ne4 {[%emt 0:00:54]} 21. Bxg7 {[%emt 0:00:06]} Qxf2+ {[%emt 0:00:04]} 22. Kh1 {[%emt 0:00:05]} Kxg7 {[%emt 0:01:26]} 23. Ra2 {[%emt 0:05:03]} Rbc8 {[%emt 0:03:03]} 24. Rf1 {[%emt 0:03:02]} Qh4 {[%emt 0:00:37]} 25. Kg1 {[%emt 0:00:13]} Nc3 {[%emt 0:01:51]} 26. Rc2 {[%emt 0:00:26]} Nxe2+ {[%emt 0:00:33]} 27. Rxe2 {[%emt 0:00:02]} Qc4 {[%emt 0:00:46]} 28. Qb2+ {[%emt 0:00:16]} Qc3 {[%emt 0:00:34]} 29. Rd1 {[%emt 0:01:07]} Qxb2 {[%emt 0:01:05]} 30. Rxb2 {[%emt 0:00:03]} Rc3 {[%emt 0:01:52]} 31. Rxd5 {[%emt 0:00:42]} Rxa3 {[%emt 0:02:56]} 32. Re5 {[%emt 0:01:14]} Rc8 {[%emt 0:02:00]} 33. Re4 {[%emt 0:01:03]} Rcc3 {[%emt 0:00:46]} 34. Kf2 {[%emt 0:00:02]} Rab3 {[%emt 0:00:39]} 35. Rd2 {[%emt 0:01:22]} Rc7 {[%emt 0:00:29]} 36. Rd6 {[%emt 0:00:31]} Rb2+ {[%emt 0:00:03]} 37. Kf3 {[%emt 0:00:09]} Rcc2 {[%emt 0:00:36]} 38. Rxa6 {[%emt 0:02:16]} Rf2+ {[%emt 0:00:25]} 39. Kg3 {[%emt 0:00:05]} Rxg2+ {[%emt 0:00:32]} 40. Kf4 {[%emt 0:00:19]} Rxh2 {[%emt 0:00:27]} 41. Ke5 {[%emt 0:30:36]} Rb3 {[%emt 0:22:49]} 42. Ra7 {[%emt 0:00:00]} Rh3 {[%emt 0:02:44]} 43. Rf4 {[%emt 0:00:00]} Rhxe3+ {[%emt 0:00:52]} 44. Kd5 {[%emt 0:00:00]} Rbd3+ {[%emt 0:01:33]} 45. Kc5 {[%emt 0:00:00]} Re5+ {[%emt 0:00:57]} 46. Kc6 {[%emt 0:00:00]} Re6+ {[%emt 0:03:07]} 47. Kxb5 {[%emt 0:00:00]} Rf6 {[%emt 0:00:03]} 48. Re4 {[%emt 0:00:00]} h5 {[%emt 0:00:44]} 49. Rc7 {[%emt 0:00:00]} g5 {[%emt 0:01:16]} 50. Rc5 {[%emt 0:00:00]} Rg6 {[%emt 0:00:53]} 51. Re7 {[%emt 0:00:00]} Rf3 {[%emt 0:00:40]} 52. Ree5 {[%emt 0:00:00]} f6 {[%emt 0:00:49]} 53. Re8 {[%emt 0:00:00]} g4 {[%emt 0:00:39]} 54. Rxh5 {[%emt 0:00:00]} f5 {[%emt 0:00:32]} 55. Rc8 {[%emt 0:00:00]} Re3 {[%emt 0:00:27]} 56. Rxf5 {[%emt 0:00:00]} g3 {[%emt 0:00:16]} 57. Rc1 {[%emt 0:00:00]} Rg4 {[%emt 0:00:26]} 1/2-1/2

[Event "22nd Hoogeveen Open 2018"]
[Site "Hoogeveen"]
[Date "2018.10.26"]
[Round "8"]
[White "Ojas Kulkarni"]
[Black "Miedema, David"]
[Result "1/2-1/2"]
[ECO "E21"]
[WhiteElo "2254"]
[BlackElo "2379"]
[Annotator "NA"]
[PlyCount "37"]
[EventDate "2018.10.20"]
[EventType "swiss"]
[EventCountry "NED"]
[SourceTitle "playchess.com"]
[Source "ChessBase"]
[SourceQuality "1"]
[TimeControl "40/5400+30:1800+30"]

1. d4 {[%emt 0:00:00]} Nf6 {[%emt 0:01:08]} 2. c4 {[%emt 0:00:00]} e6 {[%emt 0:00:55]} 3. Nc3 {[%emt 0:00:00]} Bb4 {[%emt 0:00:05]} 4. Nf3 {[%emt 0:00:08]} b6 {[%emt 0:01:28]} 5. Bd2 {[%emt 0:01:14]} O-O {[%emt 0:03:37]} 6. e3 {[%emt 0:00:20]} Bxc3 {[%emt 0:05:48]} 7. Bxc3 {[%emt 0:00:22]} Ne4 {[%emt 0:00:03] LiveBook: 3 Partien} 8. Bb4 {[%emt 0:10:59]} c5 {[%emt 0:00:21]} 9. Ba3 {[%emt 0:01:08]} Bb7 {[%emt 0:02:10]} 10. Nd2 {[%emt 0:04:30]} d6 {[%emt 0:03:31]} 11. Nxe4 $11 {[%emt 0:16:11]} Bxe4 {[%emt 0:00:04]} 12. Bd3 {[%emt 0:00:06]} Bxg2 {[%emt 0:02:24]} 13. Rg1 {[%emt 0:00:06]} Bb7 {[%emt 0:01:08]} 14. Bxh7+ {[%emt 0:07:28]} Kxh7 {[%emt 0:01:14]} 15. Qh5+ {[%emt 0:00:09]} Kg8 {[%emt 0:00:16]} 16. Qh6 {[%emt 0:04:05]} g6 {[%emt 0:00:14]} 17. Rxg6+ {[%emt 0:06:38]} fxg6 {[%emt 0:00:03]} 18. Qxg6+ {[%emt 0:00:07]} Kh8 {[%emt 0:00:03]} 19. Qh6+ {[%emt 0:01:04]} 1/2-1/2

[Event "22nd Hoogeveen Open 2018"]
[Site "Hoogeveen"]
[Date "2018.10.26"]
[Round "8"]
[White "Blagojevic, Tijana"]
[Black "De Boer, Bas"]
[Result "1/2-1/2"]
[ECO "B48"]
[WhiteElo "2232"]
[BlackElo "2102"]
[Annotator "NA"]
[PlyCount "87"]
[EventDate "2018.10.20"]
[EventType "swiss"]
[EventCountry "NED"]
[SourceTitle "playchess.com"]
[Source "ChessBase"]
[SourceQuality "1"]
[TimeControl "40/5400+30:1800+30"]

1. e4 {[%emt 0:00:00]} c5 {[%emt 0:00:00]} 2. Nf3 {[%emt 0:00:00]} e6 {[%emt 0:00:00]} 3. d4 {[%emt 0:00:00]} cxd4 {[%emt 0:00:00]} 4. Nxd4 {[%emt 0:00:00]} Nc6 {[%emt 0:00:00]} 5. Nc3 {[%emt 0:00:00]} Qc7 {[%emt 0:00:00]} 6. Be3 {[%emt 0:00:00]} a6 {[%emt 0:00:07]} 7. Bd3 {[%emt 0:00:22]} Nf6 {[%emt 0:00:23]} 8. O-O {[%emt 0:00:07]} b5 {[%emt 0:00:09]} 9. Nxc6 {[%emt 0:02:12]} Qxc6 {[%emt 0:00:41]} 10. Be2 {[%emt 0:05:35]} Bd6 {[%emt 0:10:10] LiveBook: 3 Partien} 11. Bf3 {[%emt 0:08:28]} Be5 $11 {[%emt 0:00:12]} 12. Bd4 {[%emt 0:01:05]} d6 {[%emt 0:00:08]} 13. a3 {[%emt 0:04:04]} O-O {[%emt 0:02:34]} 14. Qd2 {[%emt 0:03:30]} Bb7 {[%emt 0:02:47]} 15. Rad1 {[%emt 0:00:09]} a5 {[%emt 0:08:31]} 16. Rfe1 {[%emt 0:05:49]} Rac8 {[%emt 0:06:56]} 17. Rc1 {[%emt 0:08:04]} Rfd8 {[%emt 0:04:57]} 18. Red1 {[%emt 0:07:37]} Rd7 {[%emt 0:05:37]} 19. Ne2 {[%emt 0:06:21]} Qa6 {[%emt 0:05:02]} 20. Bxe5 {[%emt 0:06:09]} dxe5 {[%emt 0:00:29]} 21. Qg5 {[%emt 0:00:01]} Rxc2 {[%emt 0:07:58]} 22. Qxe5 {[%emt 0:00:05]} Rxc1 {[%emt 0:09:53]} 23. Rxc1 {[%emt 0:04:26]} Qb6 {[%emt 0:07:05]} 24. h3 {[%emt 0:01:25]} h6 {[%emt 0:04:31]} 25. b4 {[%emt 0:05:53]} axb4 {[%emt 0:02:14]} 26. axb4 {[%emt 0:00:03]} Rd2 {[%emt 0:01:08]} 27. Qb8+ {[%emt 0:02:29]} Rd8 {[%emt 0:01:58]} 28. Qf4 {[%emt 0:02:12]} e5 {[%emt 0:03:50]} 29. Qxe5 {[%emt 0:00:35]} Re8 {[%emt 0:00:12]} 30. Qd4 {[%emt 0:05:47]} Qxd4 {[%emt 0:05:50]} 31. Nxd4 {[%emt 0:00:03]} Bxe4 {[%emt 0:00:11]} 32. Rc5 {[%emt 0:03:48]} Bd3 {[%emt 0:01:53]} 33. Bc6 {[%emt 0:01:25]} Re1+ {[%emt 0:02:00]} 34. Kh2 {[%emt 0:00:02]} Rb1 {[%emt 0:00:18]} 35. Bxb5 {[%emt 0:00:12]} Bg6 {[%emt 0:00:58]} 36. Rc8+ {[%emt 0:03:12]} Kh7 {[%emt 0:00:12]} 37. Nc6 {[%emt 0:00:18]} Nd5 {[%emt 0:01:30]} 38. Ne5 {[%emt 0:04:56]} Rxb4 {[%emt 0:01:15]} 39. Be8 {[%emt 0:03:44]} Rf4 {[%emt 0:01:09]} 40. f3 {[%emt 0:02:05]} Rf5 {[%emt 0:02:21]} 41. Nd7 {[%emt 0:32:03]} h5 {[%emt 0:08:06]} 42. Nf8+ {[%emt 0:00:00]} Kh6 {[%emt 0:00:28]} 43. Rc5 {[%emt 0:00:00]} Ne3 {[%emt 0:07:02]} 44. Rc6 {[%emt 0:00:00]} 1/2-1/2

[Event "22nd Hoogeveen Open 2018"]
[Site "Hoogeveen"]
[Date "2018.10.26"]
[Round "8"]
[White "Kokje, Joris"]
[Black "Minko, Dmitry"]
[Result "0-1"]
[ECO "E04"]
[WhiteElo "2232"]
[BlackElo "2011"]
[Annotator "NA"]
[PlyCount "74"]
[EventDate "2018.10.20"]
[EventType "swiss"]
[EventCountry "NED"]
[SourceTitle "playchess.com"]
[Source "ChessBase"]
[SourceQuality "1"]
[TimeControl "40/5400+30:1800+30"]

1. d4 {[%emt 0:00:00]} d5 {[%emt 0:00:00]} 2. c4 {[%emt 0:00:00]} e6 {[%emt 0:00:00]} 3. Nf3 {[%emt 0:00:00]} Nf6 {[%emt 0:00:00]} 4. g3 {[%emt 0:00:00]} dxc4 {[%emt 0:00:09]} 5. Bg2 {[%emt 0:00:00]} c5 {[%emt 0:00:57]} 6. O-O {[%emt 0:04:41]} Nc6 {[%emt 0:00:53]} 7. Qa4 {[%emt 0:03:07]} Bd7 {[%emt 0:00:17]} 8. Qxc4 {[%emt 0:00:06]} b5 {[%emt 0:00:23]} 9. Qd3 {[%emt 0:00:14]} c4 {[%emt 0:00:32]} 10. Qc2 {[%emt 0:01:38]} Rc8 {[%emt 0:01:36]} 11. Bg5 {[%emt 0:02:49]} Be7 {[%emt 0:08:50] LiveBook: 8 Games} 12. Rd1 $11 {[%emt 0:02:04]} O-O {[%emt 0:03:24]} 13. Nc3 {[%emt 0:06:48]} Qb6 {[%emt 0:07:33]} 14. d5 {[%emt 0:15:28]} Nb4 {[%emt 0:24:04]} 15. Qd2 {[%emt 0:14:35]} Nbxd5 {[%emt 0:06:07]} 16. Ne5 {[%emt 0:00:18]} Rfd8 {[%emt 0:01:02]} 17. Bxd5 {[%emt 0:01:40]} exd5 {[%emt 0:04:46]} 18. Bxf6 {[%emt 0:01:22]} Qxf6 {[%emt 0:10:10]} 19. Nxd7 {[%emt 0:01:56]} Rxd7 {[%emt 0:00:35]} 20. Nxd5 {[%emt 0:00:43]} Qe6 {[%emt 0:03:29]} 21. e4 {[%emt 0:05:37]} Rcd8 {[%emt 0:01:05]} 22. Qe3 {[%emt 0:03:55]} Bf8 {[%emt 0:03:56]} 23. Re1 {[%emt 0:05:44]} f5 {[%emt 0:02:55]} 24. f3 {[%emt 0:04:09]} Rxd5 {[%emt 0:01:15]} 25. exd5 {[%emt 0:00:19]} Qxe3+ {[%emt 0:00:05]} 26. Rxe3 {[%emt 0:00:04]} Bc5 {[%emt 0:00:06]} 27. Kf2 {[%emt 0:00:11]} Rxd5 {[%emt 0:00:08]} 28. Ke2 {[%emt 0:00:10]} Bxe3 {[%emt 0:00:15]} 29. Kxe3 {[%emt 0:00:04]} Rd3+ {[%emt 0:01:25]} 30. Kf4 {[%emt 0:03:53]} Kf7 {[%emt 0:01:06]} 31. a4 {[%emt 0:01:57]} Kf6 {[%emt 0:01:23]} 32. h4 {[%emt 0:00:06]} b4 {[%emt 0:04:21]} 33. Rc1 {[%emt 0:00:47]} c3 {[%emt 0:01:32]} 34. bxc3 {[%emt 0:00:10]} Rxc3 {[%emt 0:00:19]} 35. Rd1 {[%emt 0:01:56]} b3 {[%emt 0:00:36]} 36. Rd6+ {[%emt 0:00:49]} Ke7 {[%emt 0:00:13]} 37. Rd4 {[%emt 0:00:06]} a5 {[%emt 0:00:23]} 0-1

[Event "22nd Hoogeveen Open 2018"]
[Site "Hoogeveen"]
[Date "2018.10.26"]
[Round "8"]
[White "Sparenberg, Erik"]
[Black "Maters, Arthur"]
[Result "1-0"]
[ECO "B50"]
[WhiteElo "2224"]
[BlackElo "1933"]
[Annotator "NA"]
[PlyCount "117"]
[EventDate "2018.10.20"]
[EventType "swiss"]
[EventCountry "NED"]
[SourceTitle "playchess.com"]
[Source "ChessBase"]
[SourceQuality "1"]
[TimeControl "40/5400+30:1800+30"]

1. e4 {[%emt 0:00:00]} c5 {[%emt 0:00:00]} 2. Nf3 {[%emt 0:00:00]} d6 {[%emt 0:00:00]} 3. c3 {[%emt 0:00:05]} Nf6 {[%emt 0:00:00]} 4. Be2 {[%emt 0:00:02]} Nc6 {[%emt 0:01:00] LiveBook: 319 Games} 5. d3 {[%emt 0:04:12]} g6 {[%emt 0:00:21]} 6. O-O {[%emt 0:00:07]} Bg7 {[%emt 0:00:05]} 7. Re1 {[%emt 0:00:25]} O-O {[%emt 0:00:13]} 8. Bf1 {[%emt 0:00:36]} e6 {[%emt 0:13:51]} 9. d4 {[%emt 0:02:18]} Nd7 $14 {[%emt 0:01:46]} 10. Na3 {[%emt 0:16:11]} a6 {[%emt 0:19:31]} 11. Bg5 {[%emt 0:05:59]} f6 {[%emt 0:05:59]} 12. Bh4 {[%emt 0:05:49]} Qc7 {[%emt 0:09:35]} 13. d5 {[%emt 0:09:20]} Nce5 {[%emt 0:04:57]} 14. dxe6 {[%emt 0:01:51]} Nxf3+ {[%emt 0:00:54]} 15. gxf3 {[%emt 0:00:34]} Nb6 {[%emt 0:04:16]} 16. Bg3 {[%emt 0:10:45]} Bxe6 {[%emt 0:02:33]} 17. Bxd6 {[%emt 0:02:35]} Qc6 {[%emt 0:00:12]} 18. Bxf8 {[%emt 0:00:09]} Bxf8 {[%emt 0:00:05]} 19. Qd2 {[%emt 0:07:59]} Bd6 {[%emt 0:03:41]} 20. Rad1 {[%emt 0:04:02]} Rd8 {[%emt 0:05:58]} 21. Qe3 {[%emt 0:02:47]} Qc7 {[%emt 0:01:16]} 22. f4 {[%emt 0:08:05]} Bg4 {[%emt 0:03:01]} 23. f3 {[%emt 0:01:22]} Be6 {[%emt 0:05:30]} 24. e5 {[%emt 0:02:06]} fxe5 {[%emt 0:00:06]} 25. fxe5 {[%emt 0:00:02]} Bf8 {[%emt 0:00:16]} 26. Rxd8 {[%emt 0:00:32]} Qxd8 {[%emt 0:00:07]} 27. c4 {[%emt 0:02:24]} Qh4 {[%emt 0:02:14]} 28. f4 {[%emt 0:03:08]} Bh6 {[%emt 0:02:13]} 29. Qg3 {[%emt 0:00:05]} Qxf4 {[%emt 0:00:07]} 30. Qxf4 {[%emt 0:00:06]} Bxf4 {[%emt 0:00:04]} 31. Bg2 {[%emt 0:02:01]} Nd7 {[%emt 0:01:13]} 32. Bxb7 {[%emt 0:00:34]} Nxe5 {[%emt 0:00:21]} 33. Re4 {[%emt 0:01:16]} g5 {[%emt 0:00:41]} 34. Bd5 {[%emt 0:04:39]} Kf7 {[%emt 0:00:25]} 35. Nb1 {[%emt 0:01:54]} Kf6 {[%emt 0:00:43]} 36. Bxe6 {[%emt 0:00:11]} Kxe6 {[%emt 0:00:06]} 37. Re2 {[%emt 0:01:31]} Kf5 {[%emt 0:00:14]} 38. b3 {[%emt 0:01:38]} h5 {[%emt 0:02:02]} 39. Nc3 {[%emt 0:00:58]} g4 {[%emt 0:00:41]} 40. Kg2 {[%emt 0:01:09]} Nf3 {[%emt 0:02:09]} 41. Rf2 {[%emt 0:03:42]} Be3 {[%emt 0:05:48]} 42. Rxf3+ {[%emt 0:01:03]} gxf3+ {[%emt 0:00:09]} 43. Kxf3 {[%emt 0:00:05]} Bf4 {[%emt 0:03:01]} 44. h3 {[%emt 0:06:53]} Bc1 {[%emt 0:00:35]} 45. Nd5 {[%emt 0:04:04]} a5 {[%emt 0:04:18]} 46. Nc3 {[%emt 0:00:54]} Bb2 {[%emt 0:04:47]} 47. Ne4 {[%emt 0:00:30]} Ba3 {[%emt 0:00:42]} 48. Nf2 {[%emt 0:05:32]} Bb4 {[%emt 0:04:46]} 49. Nd3 {[%emt 0:00:07]} Ba3 {[%emt 0:00:13]} 50. h4 {[%emt 0:01:56]} Bb4 {[%emt 0:00:52]} 51. a4 {[%emt 0:03:04]} Ba3 {[%emt 0:01:19]} 52. Nf4 {[%emt 0:01:03]} Ke5 {[%emt 0:00:37]} 53. Nxh5 {[%emt 0:03:01]} Kd4 {[%emt 0:00:12]} 54. Nf4 {[%emt 0:00:17]} Kc3 {[%emt 0:00:44]} 55. h5 {[%emt 0:00:38]} Kxb3 {[%emt 0:00:16]} 56. Nd3 {[%emt 0:00:26]} Kxc4 {[%emt 0:00:33]} 57. Ke4 {[%emt 0:00:21]} Bb4 {[%emt 0:00:48]} 58. h6 {[%emt 0:00:25]} Bc3 {[%emt 0:01:06]} 59. Ne5+ {[%emt 0:00:05] Kd5+ [%emt 00:00:59]} 1-0